fUST/lending_fUST_20240723
["ID","MTS","AMOUNT","RATE_DAILY","PERIOD"]
[332915664,1721677854327,-500.0,0.00014794,2]
[332915665,1721677854336,-500.0,0.00014794,2]
[332915666,1721677854345,-500.0,0.00014794,2]
[332915667,1721677854354,-293.6,0.00014794,2]
[332915668,1721677854363,-500.0,0.00014794,2]
[332915669,1721677854373,-500.0,0.00014794,2]
[332915670,1721677854382,-500.0,0.00014794,2]
[332915671,1721677854391,-608.94005554,0.00014794,2]
[332915672,1721677854400,-240.45102994,0.00014794,2]
[332915673,1721677854409,-328.63,0.00014794,2]
[332915674,1721677854419,-278.89,0.00014794,2]
[332915675,1721677854431,-332.36,0.00014794,2]
[332915676,1721677854441,-500.0,0.00014794,2]
[332915677,1721677854450,-339.58737118,0.00014794,2]
[332915678,1721677854459,-500.0,0.00014794,2]
[332915679,1721677854469,-500.0,0.00014794,2]
[332915680,1721677854478,-297.68,0.00014794,2]
[332915681,1721677854487,-369.05255322,0.00014794,2]
[332915682,1721677854495,-951.10916369,0.00015,2]
[332915683,1721677854505,-928.553004,0.00015,2]
[332915684,1721677854514,-2844.54225606,0.00015,2]
[332915685,1721677854523,-500.0,0.00015057,2]
[332915686,1721677854533,-500.0,0.00015057,2]
[332915687,1721677854542,-500.0,0.00015068,2]
[332915688,1721677854551,-1455.55,0.00015068,2]
[332915689,1721677854561,-183.53,0.00015068,2]
[332915690,1721677854571,-943.09,0.00015068,2]
[332915691,1721677854581,-500.0,0.00015068,2]
[332915692,1721677854590,-500.0,0.00015068,2]
[332915693,1721677854599,-500.0,0.00015068,2]
[332915694,1721677854609,-500.0,0.00015068,2]
[332915695,1721677854618,-500.0,0.00015068,2]
[332915696,1721677854627,-1706.61,0.00015068,2]
[332915697,1721677854637,-500.0,0.00015068,2]
[332915698,1721677854646,-500.0,0.00015068,2]
[332915699,1721677854656,-500.14,0.00015068,2]
[332915700,1721677854665,-2150.23,0.00015068,2]
[332915701,1721677854675,-1278.69,0.00015068,2]
[332915702,1721677854686,-500.0,0.00015068,2]
[332915703,1721677854696,-500.0,0.00015068,2]
[332915704,1721677854705,-413.04,0.00015068,2]
[332915705,1721677854715,-500.0,0.00015068,2]
[332915706,1721677854724,-820.8,0.00015068,2]
[332915707,1721677854733,-500.0,0.00015068,2]
[332915708,1721677854743,-500.0,0.00015068,2]
[332915709,1721677854752,-500.0,0.00015068,2]
[332915710,1721677854761,-500.0,0.00015068,2]
[332915711,1721677854771,-981.53,0.00015068,2]
[332915712,1721677854781,-500.0,0.00015068,2]
[332915713,1721677854790,-500.0,0.00015068,2]
[332915714,1721677854800,-615.82,0.00015068,2]
[332915715,1721677854810,-527.11,0.00015068,2]
[332915716,1721677854818,-500.0,0.00015068,2]
[332915717,1721677854828,-500.0,0.00015068,2]
[332915718,1721677854838,-500.0,0.00015068,2]
[332915719,1721677854847,-572.44,0.00015068,2]
[332915720,1721677854858,-500.0,0.00015068,2]
[332915721,1721677854872,-500.0,0.00015068,2]
[332915722,1721677854882,-168.15,0.00015068,2]
[332915723,1721677854891,-500.0,0.00015068,2]
[332915724,1721677854901,-500.0,0.00015068,2]
[332915725,1721677854910,-500.0,0.00015068,2]
[332915726,1721677854920,-500.0,0.00015068,2]
[332915727,1721677855032,-500.0,0.00015068,2]
[332915728,1721677855041,-500.0,0.00015068,2]
[332915729,1721677855051,-500.0,0.00015068,2]
[332915730,1721677855060,-500.0,0.00015068,2]
[332915731,1721677855070,-500.0,0.00015068,2]
[332915732,1721677855079,-500.0,0.00015068,2]
[332915733,1721677855089,-500.0,0.00015068,2]
[332915734,1721677855098,-500.0,0.00015068,2]
[332915735,1721677855108,-500.0,0.00015068,2]
[332915736,1721677855117,-500.0,0.00015068,2]
[332915737,1721677855127,-500.0,0.00015068,2]
[332915738,1721677855136,-500.0,0.00015068,2]
[332915739,1721677855146,-526.67,0.00015068,2]
[332915740,1721677855156,-500.0,0.00015068,2]
[332915741,1721677855167,-500.0,0.00015068,2]
[332915742,1721677855181,-500.0,0.00015068,2]
[332915743,1721677855192,-500.0,0.00015068,2]
[332915744,1721677855202,-500.0,0.00015068,2]
[332915745,1721677855211,-500.0,0.00015068,2]
[332915746,1721677855221,-500.0,0.00015068,2]
[332915747,1721677855231,-528.24,0.00015068,2]
[332915748,1721677855242,-500.0,0.00015068,2]
[332915749,1721677855253,-500.0,0.00015068,2]
[332915750,1721677855263,-500.0,0.00015068,2]
[332915751,1721677855274,-577.91824357,0.00015068,2]
[332915752,1721677855285,-413.49,0.00015068,2]
[332915753,1721677855296,-500.0,0.00015068,2]
[332915754,1721677855307,-579.34,0.00015068,2]
[332915755,1721677855317,-255.36,0.00015068,2]
[332915756,1721677855326,-500.0,0.00015068,2]
[332915757,1721677855337,-500.0,0.00015068,2]
[332915758,1721677855346,-500.0,0.00015068,2]
[332915759,1721677855357,-500.0,0.00015068,2]
[332915760,1721677855368,-500.0,0.00015068,2]
[332915761,1721677855377,-500.0,0.00015068,2]
[332915762,1721677855389,-500.0,0.00015068,2]
[332915763,1721677855401,-201.22,0.00015068,2]
[332915764,1721677855411,-500.0,0.00015068,2]
[332915765,1721677855421,-221.86,0.00015068,2]
[332915766,1721677855433,-500.0,0.00015068,2]
[332915767,1721677855442,-500.0,0.00015068,2]
[332915768,1721677855451,-429.79,0.00015068,2]
[332915769,1721677855460,-500.0,0.00015068,2]
[332915770,1721677855473,-500.0,0.00015068,2]
[332915771,1721677855484,-500.0,0.00015068,2]
[332915772,1721677855495,-500.0,0.00015068,2]
[332915773,1721677855504,-500.0,0.00015068,2]
[332915774,1721677855513,-167.9459,0.00015187,2]
[332915775,1721677855523,-169.205158,0.00015187,2]
[332915776,1721677855534,-160.281108,0.00015187,2]
[332915777,1721677855546,-167.016031,0.00015187,2]
[332915778,1721677855555,-500.0,0.00015341,2]
[332915779,1721677855566,-1455.55,0.00015342,2]
[332915780,1721677855577,-943.09,0.00015342,2]
[332915781,1721677855589,-500.0,0.00015342,2]
[332915782,1721677855598,-151.0,0.00015342,2]
[332915783,1721677855610,-500.0,0.00015342,2]
[332915784,1721677855620,-500.0,0.00015342,2]
[332915785,1721677855630,-500.0,0.00015342,2]
[332915786,1721677855642,-500.0,0.00015342,2]
[332915787,1721677855652,-1706.61,0.00015342,2]
[332915788,1721677855662,-222.71,0.00015342,2]
[332915789,1721677855672,-500.0,0.00015342,2]
[332915790,1721677855683,-2150.23,0.00015342,2]
[332915791,1721677855693,-1278.69,0.00015342,2]
[332915792,1721677855702,-500.0,0.00015342,2]
[332915793,1721677855711,-500.0,0.00015342,2]
[332915794,1721677855721,-500.0,0.00015342,2]
[332915795,1721677855731,-820.8,0.00015342,2]
[332915796,1721677855741,-198.89,0.00015342,2]
[332915797,1721677855750,-397.5,0.00015342,2]
[332915798,1721677855760,-500.0,0.00015342,2]
[332915799,1721677855772,-500.0,0.00015342,2]
[332915800,1721677855784,-981.53,0.00015342,2]
[332915801,1721677855794,-500.0,0.00015342,2]
[332915802,1721677855805,-500.0,0.00015342,2]
[332915803,1721677855815,-615.82,0.00015342,2]
[332915804,1721677855825,-500.0,0.00015342,2]
[332915805,1721677855836,-500.0,0.00015342,2]
[332915806,1721677855845,-500.0,0.00015342,2]
[332915807,1721677855855,-500.0,0.00015342,2]
[332915808,1721677855870,-500.0,0.00015342,2]
[332915809,1721677855881,-500.0,0.00015342,2]
[332915810,1721677855891,-500.0,0.00015342,2]
[332915811,1721677855901,-500.0,0.00015342,2]
[332915812,1721677855914,-500.0,0.00015342,2]
[332915813,1721677855925,-432.88,0.00015342,2]
[332915814,1721677855936,-319.88,0.00015342,2]
[332915815,1721677855946,-500.0,0.00015342,2]
[332915816,1721677855957,-500.0,0.00015342,2]
[332915817,1721677855970,-500.0,0.00015342,2]
[332915818,1721677855979,-500.0,0.00015342,2]
[332915819,1721677855990,-500.0,0.00015342,2]
[332915820,1721677855999,-500.0,0.00015342,2]
[332915821,1721677856009,-500.0,0.00015342,2]
[332915822,1721677856018,-500.0,0.00015342,2]
[332915823,1721677856028,-500.0,0.00015342,2]
[332915824,1721677856037,-526.67,0.00015342,2]
[332915825,1721677856047,-500.0,0.00015342,2]
[332915826,1721677856057,-500.0,0.00015342,2]
[332915827,1721677856067,-431.38518101,0.00015342,2]
[332915828,1721677856078,-500.0,0.00015342,2]
[332915829,1721677856088,-500.0,0.00015342,2]
[332915830,1721677856099,-500.0,0.00015342,2]
[332915831,1721677856108,-500.0,0.00015342,2]
[332915832,1721677856117,-500.0,0.00015342,2]
[332915833,1721677856127,-500.0,0.00015342,2]
[332915834,1721677856136,-500.0,0.00015342,2]
[332915835,1721677856146,-579.34,0.00015342,2]
[332915836,1721677856155,-500.0,0.00015342,2]
[332915837,1721677856165,-500.0,0.00015342,2]
[332915838,1721677856175,-166.02,0.00015342,2]
[332915839,1721677856186,-500.0,0.00015342,2]
[332915840,1721677856195,-500.0,0.00015342,2]
[332915841,1721677856203,-646.79,0.00015342,2]
[332915842,1721677856214,-500.0,0.00015342,2]
[332915843,1721677856225,-500.0,0.00015342,2]
[332915844,1721677856234,-500.0,0.00015342,2]
[332915845,1721677856245,-500.0,0.00015342,2]
[332915846,1721677856255,-500.0,0.00015342,2]
[332915847,1721677856266,-500.0,0.00015342,2]
[332915848,1721677856277,-620.13,0.00015342,2]
[332915849,1721677856288,-500.0,0.00015342,2]
[332915850,1721677856299,-318.13,0.00015342,2]
[332915851,1721677856308,-400.0,0.00015354,2]
[332915852,1721677856317,-160.281108,0.0001544,2]
[332915853,1721677856327,-167.016031,0.00015566,2]
[332915854,1721677856336,-151.079315,0.00015597,2]
[332915855,1721677856346,-151.079315,0.00015597,2]
[332915856,1721677856356,-156.820474,0.00015597,2]
[332915857,1721677856367,-156.820474,0.00015597,2]
[332915858,1721677856377,-151.0,0.00015597,2]
[332915859,1721677856386,-151.0,0.00015597,2]
[332915860,1721677856395,-207.851365,0.00015597,2]
[332915861,1721677856405,-207.851365,0.00015597,2]
[332915862,1721677856414,-151.0,0.00015597,2]
[332915863,1721677856423,-400.0,0.00015604,2]
[332915864,1721677856434,-1000.0,0.00015607,2]
[332915865,1721677856443,-1455.55,0.00015616,2]
[332915866,1721677856453,-943.09,0.00015616,2]
[332915867,1721677856463,-516.4,0.00015616,2]
[332915868,1721677856474,-500.0,0.00015616,2]
[332915869,1721677856484,-500.0,0.00015616,2]
[332915870,1721677856494,-500.0,0.00015616,2]
[332915871,1721677856503,-500.0,0.00015616,2]
[332915872,1721677856513,-1706.61,0.00015616,2]
[332915873,1721677856522,-500.0,0.00015616,2]
[332915874,1721677856532,-2150.23,0.00015616,2]
[332915875,1721677856542,-1278.69,0.00015616,2]
[332915876,1721677856552,-451.93,0.00015616,2]
[332915877,1721677856563,-500.0,0.00015616,2]
[332915878,1721677856572,-500.0,0.00015616,2]
[332915879,1721677856581,-820.8,0.00015616,2]
[332915880,1721677856590,-500.0,0.00015616,2]
[332915881,1721677856601,-197.7,0.00015616,2]
[332915882,1721677856611,-981.53,0.00015616,2]
[332915883,1721677856621,-500.0,0.00015616,2]
[332915884,1721677856632,-500.0,0.00015616,2]
[332915885,1721677856642,-615.82,0.00015616,2]
[332915886,1721677856653,-500.0,0.00015616,2]
[332915887,1721677856663,-599.23,0.00015616,2]
[332915888,1721677856673,-500.0,0.00015616,2]
[332915889,1721677856684,-500.0,0.00015616,2]
[332915890,1721677856695,-500.0,0.00015616,2]
[332915891,1721677856706,-271.66,0.00015616,2]
[332915892,1721677856715,-500.0,0.00015616,2]
[332915893,1721677856725,-500.0,0.00015616,2]
[332915894,1721677856735,-500.0,0.00015616,2]
[332915895,1721677856746,-500.0,0.00015616,2]
[332915896,1721677856755,-500.0,0.00015616,2]
[332915897,1721677856764,-500.0,0.00015616,2]
[332915898,1721677856774,-500.0,0.00015616,2]
[332915899,1721677856782,-500.0,0.00015616,2]
[332915900,1721677856792,-500.0,0.00015616,2]
[332915901,1721677856802,-500.0,0.00015616,2]
[332915902,1721677856811,-500.0,0.00015616,2]
[332915903,1721677856821,-500.0,0.00015616,2]
[332915904,1721677856830,-526.67,0.00015616,2]
[332915905,1721677856840,-500.0,0.00015616,2]
[332915906,1721677856850,-500.0,0.00015616,2]
[332915907,1721677856860,-500.0,0.00015616,2]
[332915908,1721677856872,-487.85854346,0.00015616,2]
[332915909,1721677856882,-500.0,0.00015616,2]
[332915910,1721677856892,-500.0,0.00015616,2]
[332915911,1721677856901,-500.0,0.00015616,2]
[332915912,1721677856911,-579.34,0.00015616,2]
[332915913,1721677856921,-500.0,0.00015616,2]
[332915914,1721677856931,-500.0,0.00015616,2]
[332915915,1721677856942,-500.0,0.00015616,2]
[332915916,1721677856954,-500.0,0.00015616,2]
[332915917,1721677856966,-500.0,0.00015616,2]
[332915918,1721677856977,-519.91701201,0.00015616,2]
[332915919,1721677856986,-500.0,0.00015616,2]
[332915920,1721677856995,-500.0,0.00015616,2]
[332915921,1721677857005,-500.0,0.00015616,2]
[332915922,1721677857015,-500.0,0.00015616,2]
[332915923,1721677857026,-500.0,0.00015616,2]
[332915924,1721677857035,-3359.62228768,0.00015676,2]
[332915925,1721677857045,-160.281108,0.00015693,2]
[332915926,1721677857055,-500.0,0.00015696,2]
[332915927,1721677857065,-500.0,0.00015696,2]
[332915928,1721677857075,-500.0,0.00015696,2]
[332915929,1721677857085,-500.0,0.00015696,2]
[332915930,1721677857094,-500.0,0.00015696,2]
[332915931,1721677857105,-500.0,0.00015696,2]
[332915932,1721677857116,-150.112233,0.000157,4]
[332915933,1721677857223,-500.0,0.00015705,2]
[332915934,1721677857234,-500.0,0.00015706,2]
[332915935,1721677857244,-500.0,0.00015706,2]
[332915936,1721677857255,-500.0,0.00015706,2]
[332915937,1721677857264,-500.0,0.00015706,2]
[332915938,1721677857274,-500.0,0.00015706,2]
[332915939,1721677857284,-500.0,0.00015706,2]
[332915940,1721677857293,-500.0,0.00015706,2]
[332915941,1721677857303,-224.95,0.00015706,2]
[332915942,1721677857314,-319799.05613138,0.00015707,2]
[332915943,1721677857324,-151.0,0.00015707,2]
[332915944,1721677857334,-151.0,0.00015707,2]
[332915945,1721677857344,-151.0,0.00015707,2]
[332915946,1721677857354,-287.810939,0.00015707,2]
[332915947,1721677857364,-151.0,0.00015707,2]
[332915948,1721677857374,-151.0,0.00015707,2]
[332915949,1721677857384,-2811.09464157,0.00015708,2]
[332915950,1721677857393,-151.0,0.0001571,2]
[332915951,1721677857402,-151.0,0.0001571,2]
[332915952,1721677857411,-219.0,0.00015781,2]
[332915953,1721677857421,-1455.55,0.0001589,2]
[332915954,1721677857431,-943.09,0.0001589,2]
[332915955,1721677857443,-500.0,0.0001589,2]
[332915956,1721677857453,-500.0,0.0001589,2]
[332915957,1721677857462,-372.99,0.0001589,2]
[332915958,1721677857471,-500.0,0.0001589,2]
[332915959,1721677857481,-1706.61,0.0001589,2]
[332915960,1721677857490,-500.0,0.0001589,2]
[332915961,1721677857500,-2150.23,0.0001589,2]
[332915962,1721677857509,-1278.69,0.0001589,2]
[332915963,1721677857519,-500.0,0.0001589,2]
[332915964,1721677857529,-500.0,0.0001589,2]
[332915965,1721677857539,-820.8,0.0001589,2]
[332915966,1721677857549,-500.0,0.0001589,2]
[332915967,1721677857558,-981.53,0.0001589,2]
[332915968,1721677857567,-500.0,0.0001589,2]
[332915969,1721677857578,-500.0,0.0001589,2]
[332915970,1721677857589,-615.82,0.0001589,2]
[332915971,1721677857601,-500.0,0.0001589,2]
[332915972,1721677857610,-500.0,0.0001589,2]
[332915973,1721677857621,-500.0,0.0001589,2]
[332915974,1721677857631,-500.0,0.0001589,2]
[332915975,1721677857641,-500.0,0.0001589,2]
[332915976,1721677857651,-500.0,0.0001589,2]
[332915977,1721677857660,-153.67,0.0001589,2]
[332915978,1721677857670,-500.0,0.0001589,2]
[332915979,1721677857680,-500.0,0.0001589,2]
[332915980,1721677857691,-500.0,0.0001589,2]
[332915981,1721677857701,-500.0,0.0001589,2]
[332915982,1721677857710,-212.1,0.0001589,2]
[332915983,1721677857720,-500.0,0.0001589,2]
[332915984,1721677857729,-258.8,0.0001589,2]
[332915985,1721677857739,-500.0,0.0001589,2]
[332915986,1721677857749,-500.0,0.0001589,2]
[332915987,1721677857759,-526.67,0.0001589,2]
[332915988,1721677857768,-500.0,0.0001589,2]
[332915989,1721677857778,-500.0,0.0001589,2]
[332915990,1721677857787,-500.0,0.0001589,2]
[332915991,1721677857796,-500.0,0.0001589,2]
[332915992,1721677857807,-500.0,0.0001589,2]
[332915993,1721677857816,-244.99,0.0001589,2]
[332915994,1721677857826,-579.34,0.0001589,2]
[332915995,1721677857836,-500.0,0.0001589,2]
[332915996,1721677857845,-500.0,0.0001589,2]
[332915997,1721677857855,-500.0,0.0001589,2]
[332915998,1721677857866,-500.0,0.0001589,2]
[332915999,1721677857876,-500.0,0.0001589,2]
[332916000,1721677857885,-500.0,0.0001589,2]
[332916001,1721677857895,-500.0,0.0001589,2]
[332916002,1721677857905,-500.0,0.0001589,2]
[332916003,1721677857914,-500.0,0.0001589,2]
[332916004,1721677857923,-500.0,0.0001589,2]
[332916005,1721677857933,-167.9459,0.00015946,2]
[332916006,1721677857947,-169.205158,0.00015946,2]
[332916007,1721677857956,-167.016031,0.00015946,2]
[332916008,1721677857966,-160.281108,0.00015946,2]
[332916009,1721677857975,-3000.0,0.00016,2]
[332916010,1721677857985,-3000.0,0.0001601,2]
[332916011,1721677857994,-3000.0,0.0001602,2]
[332916012,1721677858004,-3000.0,0.0001603,2]
[332916013,1721677858013,-67176.6485784,0.00016038,2]
[332916014,1721677858022,-3000.0,0.0001604,2]
[332916015,1721677858033,-151.0,0.0001605,2]
[332916016,1721677858042,-3000.0,0.0001605,2]
[332916017,1721677858051,-3000.0,0.0001606,2]
[332916018,1721677858062,-3000.0,0.0001607,2]
[332916019,1721677858073,-3000.0,0.0001608,2]
[332916020,1721677858083,-3000.0,0.0001609,2]
[332916021,1721677858092,-3000.0,0.000161,2]
[332916022,1721677858106,-3000.0,0.0001611,2]
[332916023,1721677858115,-3000.0,0.0001612,2]
[332916024,1721677858124,-151.0,0.0001612,2]
[332916025,1721677858134,-151.0,0.0001612,2]
[332916026,1721677858143,-196.48811,0.0001612,2]
[332916027,1721677858152,-151.0,0.0001612,2]
[332916028,1721677858161,-196.48811,0.0001612,2]
[332916029,1721677858173,-224.50165,0.0001612,2]
[332916030,1721677858183,-224.50165,0.0001612,2]
[332916031,1721677858193,-3000.0,0.0001613,2]
[332916032,1721677858202,-151.0,0.0001613,2]
[332916033,1721677858212,-151.0,0.0001613,2]
[332916034,1721677858221,-151.0,0.0001613,2]
[332916035,1721677858230,-156.820474,0.0001613,2]
[332916036,1721677858241,-156.820474,0.0001613,2]
[332916037,1721677858250,-151.0,0.0001613,2]
[332916038,1721677858262,-151.0,0.0001613,2]
[332916039,1721677858271,-151.0,0.0001613,2]
[332916040,1721677858281,-207.851365,0.0001613,2]
[332916041,1721677858290,-207.851365,0.0001613,2]
[332916042,1721677858299,-151.0,0.0001613,2]
[332916043,1721677858308,-3000.0,0.0001614,2]
[332916044,1721677858318,-151.0,0.0001614,2]
[332916045,1721677858327,-151.0,0.0001614,2]
[332916046,1721677858336,-151.0,0.0001614,2]
[332916047,1721677858346,-151.0,0.0001614,2]
[332916048,1721677858355,-194.638434,0.0001614,2]
[332916049,1721677858364,-194.638434,0.0001614,2]
[332916050,1721677858373,-151.0,0.0001614,2]
[332916051,1721677858383,-196.751752,0.0001614,2]
[332916052,1721677858392,-196.751752,0.0001614,2]
[332916053,1721677858401,-3000.0,0.0001615,2]
[332916054,1721677858410,-3000.0,0.0001616,2]
[332916055,1721677858419,-1455.55,0.00016164,2]
[332916056,1721677858428,-943.09,0.00016164,2]
[332916057,1721677858439,-500.0,0.00016164,2]
[332916058,1721677858449,-500.0,0.00016164,2]
[332916059,1721677858458,-500.0,0.00016164,2]
[332916060,1721677858467,-1706.61,0.00016164,2]
[332916061,1721677858476,-500.0,0.00016164,2]
[332916062,1721677858485,-2150.23,0.00016164,2]
[332916063,1721677858494,-1278.69,0.00016164,2]
[332916064,1721677858503,-500.0,0.00016164,2]
[332916065,1721677858512,-500.0,0.00016164,2]
[332916066,1721677858522,-820.8,0.00016164,2]
[332916067,1721677858531,-500.0,0.00016164,2]
[332916068,1721677858540,-981.53,0.00016164,2]
[332916069,1721677858549,-500.0,0.00016164,2]
[332916070,1721677858558,-500.0,0.00016164,2]
[332916071,1721677858566,-615.82,0.00016164,2]
[332916072,1721677858575,-500.0,0.00016164,2]
[332916073,1721677858585,-500.0,0.00016164,2]
[332916074,1721677858595,-500.0,0.00016164,2]
[332916075,1721677858604,-500.0,0.00016164,2]
[332916076,1721677858614,-500.0,0.00016164,2]
[332916077,1721677858623,-500.0,0.00016164,2]
[332916078,1721677858632,-500.0,0.00016164,2]
[332916079,1721677858641,-500.0,0.00016164,2]
[332916080,1721677858651,-500.0,0.00016164,2]
[332916081,1721677858660,-500.0,0.00016164,2]
[332916082,1721677858670,-500.0,0.00016164,2]
[332916083,1721677858679,-500.0,0.00016164,2]
[332916084,1721677858692,-554.99,0.00016164,2]
[332916085,1721677858701,-526.67,0.00016164,2]
[332916086,1721677858712,-500.0,0.00016164,2]
[332916087,1721677858721,-500.0,0.00016164,2]
[332916088,1721677858731,-500.0,0.00016164,2]
[332916089,1721677858740,-500.0,0.00016164,2]
[332916090,1721677858750,-500.0,0.00016164,2]
[332916091,1721677858759,-579.34,0.00016164,2]
[332916092,1721677858769,-500.0,0.00016164,2]
[332916093,1721677858779,-500.0,0.00016164,2]
[332916094,1721677858789,-500.0,0.00016164,2]
[332916095,1721677858798,-500.0,0.00016164,2]
[332916096,1721677858808,-500.0,0.00016164,2]
[332916097,1721677858817,-500.0,0.00016164,2]
[332916098,1721677858827,-500.0,0.00016164,2]
[332916099,1721677858837,-500.0,0.00016164,2]
[332916100,1721677858847,-500.0,0.00016164,2]
[332916101,1721677858857,-500.0,0.00016164,2]
[332916102,1721677858870,-3000.0,0.0001617,2]
[332916103,1721677858879,-3000.0,0.0001618,2]
[332916104,1721677858890,-3000.0,0.0001619,2]
[332916105,1721677858899,-1000.0,0.00016199,2]
[332916106,1721677858909,-3000.0,0.000162,2]
[332916107,1721677858919,-3000.0,0.0001621,2]
[332916108,1721677858928,-3000.0,0.0001622,2]
[332916109,1721677858941,-3000.0,0.0001623,2]
[332916110,1721677858952,-3000.0,0.0001624,2]
[332916111,1721677858963,-3000.0,0.0001625,2]
[332916112,1721677858972,-3000.0,0.0001626,2]
[332916113,1721677858983,-1002.61770105,0.00016266,2]
[332916114,1721677858994,-3000.0,0.0001627,2]
[332916115,1721677859003,-3000.0,0.0001628,2]
[332916116,1721677859014,-3000.0,0.0001629,2]
[332916117,1721677859024,-3000.0,0.000163,2]
[332916118,1721677859033,-3000.0,0.0001631,2]
[332916119,1721677859044,-3000.0,0.0001632,2]
[332916120,1721677859053,-5850.410323,0.0001633,2]
[332916121,1721677859150,-493.6852174,0.00016347,2]
[332916122,1721677859162,-151.0,0.00016437,2]
[332916123,1721677859172,-181.299714,0.00016437,2]
[332916124,1721677859182,-1455.55,0.00016438,2]
[332916125,1721677859194,-943.09,0.00016438,2]
[332916126,1721677859203,-178.051104,0.00016438,2]
[332916127,1721677859213,-583.41721715,0.00016438,2]
[332916128,1721677859222,-500.0,0.00016438,2]
[332916129,1721677859231,-500.0,0.00016438,2]
[332916130,1721677859241,-1706.61,0.00016438,2]
[332916131,1721677859250,-468.9,0.00016438,2]
[332916132,1721677859261,-2150.23,0.00016438,2]
[332916133,1721677859270,-1278.69,0.00016438,2]
[332916134,1721677859281,-183.34,0.00016438,2]
[332916135,1721677859291,-500.0,0.00016438,2]
[332916136,1721677859301,-820.8,0.00016438,2]
[332916137,1721677859311,-500.0,0.00016438,2]
[332916138,1721677859322,-981.53,0.00016438,2]
[332916139,1721677859332,-540.72,0.00016438,2]
[332916140,1721677859341,-150.38,0.00016438,2]
[332916141,1721677859351,-615.82,0.00016438,2]
[332916142,1721677859361,-500.0,0.00016438,2]
[332916143,1721677859371,-500.0,0.00016438,2]
[332916144,1721677859381,-500.0,0.00016438,2]
[332916145,1721677859392,-500.0,0.00016438,2]
[332916146,1721677859402,-500.0,0.00016438,2]
[332916147,1721677859413,-500.0,0.00016438,2]
[332916148,1721677859424,-500.0,0.00016438,2]
[332916149,1721677859433,-500.0,0.00016438,2]
[332916150,1721677859448,-500.0,0.00016438,2]
[332916151,1721677859460,-500.0,0.00016438,2]
[332916152,1721677859470,-500.0,0.00016438,2]
[332916153,1721677859482,-387.42,0.00016438,2]
[332916154,1721677859492,-526.67,0.00016438,2]
[332916155,1721677859502,-500.0,0.00016438,2]
[332916156,1721677859512,-500.0,0.00016438,2]
[332916157,1721677859525,-500.0,0.00016438,2]
[332916158,1721677859535,-500.0,0.00016438,2]
[332916159,1721677859546,-500.0,0.00016438,2]
[332916160,1721677859557,-579.34,0.00016438,2]
[332916161,1721677859567,-500.0,0.00016438,2]
[332916162,1721677859577,-500.0,0.00016438,2]
[332916163,1721677859587,-500.0,0.00016438,2]